fUST/lending_fUST_20250101
["ID","MTS","AMOUNT","RATE_DAILY","PERIOD"]
[347335788,1735703432842,-500.0,0.00019099,2]
[347335790,1735703432852,-500.0,0.00019099,2]
[347335792,1735703432862,-500.0,0.00019099,2]
[347335794,1735703432871,-500.0,0.00019099,2]
[347335796,1735703432883,-500.0,0.00019099,2]
[347335798,1735703432893,-500.0,0.00019099,2]
[347335800,1735703432902,-500.0,0.00019099,2]
[347335802,1735703432912,-500.0,0.00019099,2]
[347335804,1735703432924,-500.0,0.00019099,2]
[347335806,1735703432936,-500.0,0.00019099,2]
[347335808,1735703432946,-500.0,0.00019099,2]
[347335810,1735703432955,-500.0,0.00019099,2]
[347335812,1735703432966,-500.0,0.00019099,2]
[347335814,1735703432976,-500.0,0.00019099,2]
[347335816,1735703432986,-500.0,0.00019099,2]
[347335818,1735703432996,-500.0,0.00019099,2]
[347335821,1735703433007,-500.0,0.00019099,2]
[347335823,1735703433018,-500.0,0.00019099,2]
[347335825,1735703433028,-587.49692752,0.00019099,2]
[347335827,1735703433038,-500.0,0.00019099,2]
[347335829,1735703433048,-500.0,0.00019099,2]
[347335831,1735703433058,-500.0,0.00019099,2]
[347335833,1735703433069,-500.0,0.00019099,2]
[347335835,1735703433079,-500.0,0.00019099,2]
[347335837,1735703433089,-500.0,0.00019099,2]
[347335839,1735703433100,-500.0,0.00019099,2]
[347335841,1735703433110,-500.0,0.00019099,2]
[347335843,1735703433119,-500.0,0.00019099,2]
[347335845,1735703433129,-500.0,0.00019099,2]
[347335847,1735703433139,-500.0,0.00019099,2]
[347335849,1735703433149,-500.0,0.00019099,2]
[347335851,1735703433159,-25000.0,0.000191,2]
[347335853,1735703433168,-25000.0,0.000191,2]
[347335855,1735703433178,-25032.31121611,0.000191,2]
[347335857,1735703433188,-618.0,0.000191,2]
[347335859,1735703433198,-151.0,0.000191,2]
[347335862,1735703433208,-151.0,0.000191,2]
[347335864,1735703433217,-3606.95274183,0.00019133,2]
[347335866,1735703433231,-617.91775077,0.00019154,2]
[347335868,1735703433240,-302.60665372,0.00019158,2]
[347335870,1735703433250,-3201.22594318,0.00019169,2]
[347335872,1735703433261,-501.41942562,0.00019173,2]
[347335874,1735703433270,-502.89127344,0.00019173,2]
[347335894,1735703433449,-576.93285536,0.00019173,2]
[347335896,1735703433460,-500.0,0.00019173,2]
[347335898,1735703433469,-500.0,0.00019173,2]
[347335900,1735703433479,-501.9506799,0.00019173,2]
[347335902,1735703433489,-447.24459213,0.00019173,2]
[347335904,1735703433499,-500.0,0.00019173,2]
[347335906,1735703433508,-203.46562858,0.00019173,2]
[347335908,1735703433518,-500.0,0.00019173,2]
[347335910,1735703433527,-500.0,0.00019173,2]
[347335912,1735703433537,-500.78274738,0.00019173,2]
[347335914,1735703433547,-500.0,0.00019173,2]
[347335916,1735703433559,-219.68265849,0.00019173,2]
[347335918,1735703433568,-578.5146873,0.00019173,2]
[347335921,1735703433578,-536.91689023,0.00019173,2]
[347335923,1735703433588,-500.0,0.00019173,2]
[347335925,1735703433597,-259.95870971,0.00019173,2]
[347335927,1735703433607,-500.0,0.00019173,2]
[347335929,1735703433617,-426.06742865,0.00019173,2]
[347335930,1735703433626,-311.93715762,0.00019173,2]
[347335931,1735703433635,-152.18647337,0.00019173,2]
[347335932,1735703433645,-170.76746889,0.00019177,2]
[347335933,1735703433655,-545.30068096,0.00019177,2]
[347335934,1735703433664,-234.14704896,0.00019177,2]
[347335935,1735703433674,-360.96592016,0.00019177,2]
[347335936,1735703433684,-18367.53232574,0.00019178,2]
[347335937,1735703433694,-211146.15944346,0.00019178,2]
[347335938,1735703433703,-500.0,0.00019178,2]
[347335939,1735703433714,-500.0,0.00019178,2]
[347335940,1735703433723,-154.054485,0.00019178,2]
[347335941,1735703433732,-151.0,0.00019178,2]
[347335942,1735703433743,-151.0,0.00019178,2]
[347335944,1735703433752,-151.0,0.00019178,2]
[347335945,1735703433762,-151.0,0.00019178,2]
[347335946,1735703433772,-151.0,0.00019178,2]
[347335947,1735703433782,-151.0,0.00019178,2]
[347335948,1735703433792,-151.0,0.00019178,2]
[347335949,1735703433802,-151.0,0.00019178,2]
[347335950,1735703433812,-151.0,0.00019178,2]
[347335952,1735703433822,-151.0,0.00019178,2]
[347335953,1735703433831,-151.0,0.00019178,2]
[347335954,1735703433841,-151.0,0.00019178,2]
[347335955,1735703433850,-215.173671,0.00019178,2]
[347335956,1735703433860,-151.0,0.00019178,2]
[347335957,1735703433869,-151.0,0.00019178,2]
[347335958,1735703433879,-151.0,0.00019178,2]
[347335959,1735703433889,-151.0,0.00019178,2]
[347335960,1735703433898,-151.0,0.00019178,2]
[347335961,1735703433908,-151.0,0.00019178,2]
[347335962,1735703433918,-151.0,0.00019178,2]
[347335963,1735703433930,-151.0,0.00019178,2]
[347335964,1735703433940,-151.0,0.00019178,2]
[347335965,1735703433950,-151.0,0.00019178,2]
[347335966,1735703433959,-151.0,0.00019178,2]
[347335967,1735703433969,-152.331409,0.00019178,2]
[347335968,1735703433979,-160.219361,0.00019178,2]
[347335969,1735703433988,-151.0,0.00019178,2]
[347335970,1735703433998,-221.289391,0.00019178,2]
[347335971,1735703434008,-151.0,0.00019178,2]
[347335972,1735703434018,-151.0,0.00019178,2]
[347335973,1735703434027,-155.771079,0.00019178,2]
[347335974,1735703434037,-151.0,0.00019178,2]
[347335975,1735703434046,-151.0,0.00019178,2]
[347335976,1735703434055,-151.0,0.00019178,2]
[347335977,1735703434065,-293.94613,0.00019178,2]
[347335978,1735703434074,-151.0,0.00019178,2]
[347335979,1735703434083,-151.0,0.00019178,2]
[347335980,1735703434093,-151.0,0.00019178,2]
[347335981,1735703434103,-151.0,0.00019178,2]
[347335982,1735703434113,-151.0,0.00019178,2]
[347335983,1735703434122,-151.0,0.00019178,2]
[347335984,1735703434131,-151.0,0.00019178,2]
[347335985,1735703434141,-151.0,0.00019178,2]
[347335986,1735703434150,-151.0,0.00019178,2]
[347335987,1735703434160,-170.61675,0.00019178,2]
[347335988,1735703434170,-222.162713,0.00019178,2]
[347335989,1735703434179,-222.162713,0.00019178,2]
[347335990,1735703434188,-222.162713,0.00019178,2]
[347335991,1735703434198,-222.162713,0.00019178,2]
[347335992,1735703434207,-222.162713,0.00019178,2]
[347335993,1735703434217,-222.162713,0.00019178,2]
[347335994,1735703434227,-222.162713,0.00019178,2]
[347335995,1735703434236,-222.162713,0.00019178,2]
[347335996,1735703434245,-222.162713,0.00019178,2]
[347335997,1735703434255,-222.162713,0.00019178,2]
[347335998,1735703434265,-222.162713,0.00019178,2]
[347335999,1735703434275,-222.162713,0.00019178,2]
[347336000,1735703434284,-222.162713,0.00019178,2]
[347336001,1735703434294,-222.162713,0.00019178,2]
[347336002,1735703434303,-222.162713,0.00019178,2]
[347336003,1735703434312,-222.162713,0.00019178,2]
[347336004,1735703434321,-151.0,0.00019178,2]
[347336005,1735703434330,-151.0,0.00019178,2]
[347336006,1735703434339,-151.0,0.00019178,2]
[347336007,1735703434348,-151.0,0.00019178,2]
[347336008,1735703434358,-151.0,0.00019178,2]
[347336009,1735703434367,-153.293108,0.00019178,2]
[347336010,1735703434377,-202.098284,0.00019178,2]
[347336011,1735703434386,-202.098284,0.00019178,2]
[347336012,1735703434395,-202.098284,0.00019178,2]
[347336013,1735703434404,-202.098284,0.00019178,2]
[347336014,1735703434413,-202.098284,0.00019178,2]
[347336015,1735703434423,-202.098284,0.00019178,2]
[347336016,1735703434432,-202.098284,0.00019178,2]
[347336017,1735703434442,-202.098284,0.00019178,2]
[347336018,1735703434451,-202.098284,0.00019178,2]
[347336019,1735703434461,-202.098284,0.00019178,2]
[347336020,1735703434470,-202.098284,0.00019178,2]
[347336021,1735703434479,-202.098284,0.00019178,2]
[347336022,1735703434489,-202.098284,0.00019178,2]
[347336023,1735703434512,-202.098284,0.00019178,2]
[347336024,1735703434522,-202.098284,0.00019178,2]
[347336025,1735703434532,-202.098284,0.00019178,2]
[347336026,1735703434542,-202.098284,0.00019178,2]
[347336027,1735703434553,-202.098284,0.00019178,2]
[347336028,1735703434563,-151.0,0.00019178,2]
[347336029,1735703434572,-151.0,0.00019178,2]
[347336030,1735703434582,-151.0,0.00019178,2]
[347336031,1735703434592,-151.0,0.00019178,2]
[347336032,1735703434602,-151.0,0.00019178,2]
[347336033,1735703434612,-151.0,0.00019178,2]
[347336034,1735703434622,-151.0,0.00019178,2]
[347336035,1735703434632,-151.0,0.00019178,2]
[347336036,1735703434642,-188.657589,0.00019178,2]
[347336037,1735703434652,-151.0,0.00019178,2]
[347336038,1735703434662,-151.0,0.00019178,2]
[347336039,1735703434673,-151.0,0.00019178,2]
[347336040,1735703434683,-151.0,0.00019178,2]
[347336041,1735703434694,-151.0,0.00019178,2]
[347336042,1735703434704,-151.0,0.00019178,2]
[347336043,1735703434714,-151.0,0.00019178,2]
[347336044,1735703434724,-151.0,0.00019178,2]
[347336045,1735703434735,-151.0,0.00019178,2]
[347336046,1735703434744,-169.772713,0.00019178,2]
[347336047,1735703434755,-170.035768,0.00019178,2]
[347336048,1735703434764,-170.035768,0.00019178,2]
[347336049,1735703434774,-170.035768,0.00019178,2]
[347336050,1735703434784,-170.035768,0.00019178,2]
[347336051,1735703434794,-170.035768,0.00019178,2]
[347336052,1735703434806,-170.035768,0.00019178,2]
[347336053,1735703434815,-170.035768,0.00019178,2]
[347336054,1735703434825,-170.035768,0.00019178,2]
[347336055,1735703434835,-170.035768,0.00019178,2]
[347336056,1735703434845,-170.035768,0.00019178,2]
[347336057,1735703434855,-170.035768,0.00019178,2]
[347336058,1735703434864,-170.035768,0.00019178,2]
[347336059,1735703434874,-170.035768,0.00019178,2]
[347336060,1735703434884,-170.035768,0.00019178,2]
[347336061,1735703434895,-170.035768,0.00019178,2]
[347336062,1735703434905,-170.035768,0.00019178,2]
[347336063,1735703434914,-170.035768,0.00019178,2]
[347336064,1735703434924,-501.89744816,0.00019178,2]
[347336065,1735703434938,-170.035768,0.00019178,2]
[347336066,1735703434948,-366.313161,0.00019178,2]
[347336067,1735703434957,-366.313161,0.00019178,2]
[347336068,1735703434967,-366.313161,0.00019178,2]
[347336069,1735703434977,-366.313161,0.00019178,2]
[347336070,1735703434987,-366.313161,0.00019178,2]
[347336071,1735703434997,-366.313161,0.00019178,2]
[347336072,1735703435009,-500.0,0.00019178,2]
[347336073,1735703435021,-500.0,0.00019178,2]
[347336074,1735703435030,-155.52451998,0.00019178,2]
[347336075,1735703435041,-500.0,0.00019178,2]
[347336076,1735703435051,-10764.37,0.00019178,2]
[347336077,1735703435061,-500.0,0.00019178,2]
[347336078,1735703435070,-493.28256153,0.00019178,2]
[347336079,1735703435080,-501.79322682,0.00019178,2]
[347336080,1735703435090,-500.0,0.00019178,2]
[347336081,1735703435100,-500.0,0.00019178,2]
[347336082,1735703435109,-1888.33,0.00019178,2]
[347336083,1735703435119,-505.81981301,0.00019178,2]
[347336084,1735703435129,-500.0,0.00019178,2]
[347336085,1735703435139,-500.0,0.00019178,2]
[347336086,1735703435149,-501.96768082,0.00019178,2]
[347336087,1735703435158,-500.0,0.00019178,2]
[347336088,1735703435167,-503.58612717,0.00019178,2]
[347336089,1735703435177,-309.98673106,0.00019178,2]
[347336090,1735703435186,-501.92560286,0.00019178,2]
[347336091,1735703435196,-500.0,0.00019178,2]
[347336092,1735703435205,-501.70894114,0.00019178,2]
[347336093,1735703435215,-500.0,0.00019178,2]
[347336094,1735703435226,-500.0,0.00019178,2]
[347336095,1735703435235,-500.0,0.00019178,2]
[347336096,1735703435245,-501.30619144,0.00019178,2]
[347336097,1735703435255,-501.36397427,0.00019178,2]
[347336098,1735703435265,-501.3720754,0.00019178,2]
[347336099,1735703435274,-500.0,0.00019178,2]
[347336100,1735703435284,-502.08298824,0.00019178,2]
[347336101,1735703435294,-503.46350586,0.00019178,2]
[347336102,1735703435306,-505.54660794,0.00019178,2]
[347336103,1735703435315,-500.0,0.00019178,2]
[347336104,1735703435326,-501.76689878,0.00019178,2]
[347336105,1735703435335,-502.43420387,0.00019178,2]
[347336106,1735703435345,-503.26601446,0.00019178,2]
[347336107,1735703435355,-502.8444591,0.00019178,2]
[347336108,1735703435364,-500.0,0.00019178,2]
[347336109,1735703435374,-500.0,0.00019178,2]
[347336110,1735703435384,-502.16666916,0.00019178,2]
[347336111,1735703435393,-501.63592278,0.00019178,2]
[347336112,1735703435403,-500.0,0.00019178,2]
[347336113,1735703435413,-500.0,0.00019178,2]
[347336114,1735703435423,-511.10892591,0.00019178,2]
[347336115,1735703435433,-504.76934593,0.00019178,2]
[347336116,1735703435442,-500.0,0.00019178,2]
[347336117,1735703435451,-500.0,0.00019178,2]
[347336118,1735703435461,-335.76653836,0.00019178,2]
[347336119,1735703435471,-500.0,0.00019178,2]
[347336120,1735703435480,-501.96399624,0.00019178,2]
[347336121,1735703435490,-500.0,0.00019178,2]
[347336122,1735703435500,-500.0,0.00019178,2]
[347336123,1735703435510,-500.0,0.00019178,2]
[347336124,1735703435520,-540.67072616,0.00019178,2]
[347336125,1735703435531,-500.0,0.00019178,2]
[347336126,1735703435541,-501.58259512,0.00019178,2]
[347336127,1735703435552,-500.0,0.00019178,2]
[347336128,1735703435561,-500.0,0.00019178,2]
[347336129,1735703435573,-500.0,0.00019178,2]
[347336130,1735703435583,-500.0,0.00019178,2]
[347336131,1735703435592,-502.87517767,0.00019178,2]
[347336132,1735703435602,-500.0,0.00019178,2]
[347336133,1735703435614,-500.0,0.00019178,2]
[347336134,1735703435625,-500.0,0.00019178,2]
[347336135,1735703435635,-500.0,0.00019178,2]
[347336136,1735703435644,-500.0,0.00019178,2]
[347336137,1735703435654,-512.16635962,0.00019178,2]
[347336138,1735703435665,-500.0,0.00019178,2]
[347336139,1735703435791,-524.30135863,0.00019178,2]
[347336140,1735703435815,-501.67976511,0.00019178,2]
[347336141,1735703435825,-500.0,0.00019178,2]
[347336142,1735703435836,-500.53254651,0.00019178,2]
[347336143,1735703435846,-151.0,0.00019178,2]
[347336144,1735703435856,-501.71728701,0.00019178,2]
[347336145,1735703435865,-151.0,0.00019178,2]
[347336146,1735703435875,-151.0,0.00019178,2]
[347336147,1735703435884,-501.40755393,0.00019178,2]
[347336148,1735703435893,-151.0,0.00019178,2]
[347336149,1735703435903,-500.0,0.00019178,2]
[347336150,1735703435913,-151.0,0.00019178,2]
[347336151,1735703435922,-151.0,0.00019178,2]
[347336152,1735703435935,-151.0,0.00019178,2]
[347336153,1735703435944,-500.34341596,0.00019178,2]
[347336154,1735703435954,-151.0,0.00019178,2]
[347336155,1735703435963,-151.0,0.00019178,2]
[347336156,1735703435973,-501.876027,0.00019178,2]
[347336157,1735703435982,-213.389577,0.00019178,2]
[347336158,1735703435991,-500.68540502,0.00019178,2]
[347336159,1735703436000,-500.0,0.00019178,2]
[347336160,1735703436010,-501.54291302,0.00019178,2]
[347336161,1735703436019,-504.10355821,0.00019178,2]
[347336162,1735703436028,-500.0,0.00019178,2]
[347336163,1735703436039,-500.92463303,0.00019178,2]
[347336164,1735703436050,-500.0,0.00019178,2]
[347336165,1735703436059,-223.2276969,0.00019178,2]
[347336166,1735703436069,-501.29556248,0.00019178,2]
[347336167,1735703436079,-500.0,0.00019178,2]
[347336168,1735703436089,-501.1054568,0.00019178,2]
[347336169,1735703436099,-506.94332295,0.00019178,2]
[347336170,1735703436108,-501.22600146,0.00019178,2]
[347336171,1735703436117,-501.09057406,0.00019178,2]
[347336172,1735703436127,-500.0,0.00019178,2]
[347336173,1735703436143,-500.0,0.00019178,2]
[347336174,1735703436153,-500.61588159,0.00019178,2]
[347336175,1735703436162,-500.0,0.00019178,2]
[347336176,1735703436172,-151.0,0.00019178,2]
[347336177,1735703436181,-151.0,0.00019178,2]
[347336178,1735703436191,-151.0,0.00019178,2]
[347336179,1735703436200,-151.0,0.00019178,2]
[347336180,1735703436210,-151.0,0.00019178,2]
[347336181,1735703436219,-151.0,0.00019178,2]
[347336182,1735703436229,-500.0,0.00019178,2]
[347336183,1735703436238,-501.09406938,0.00019178,2]
[347336184,1735703436247,-151.0,0.00019178,2]
[347336185,1735703436256,-151.0,0.00019178,2]
[347336186,1735703436266,-500.0,0.00019178,2]
[347336187,1735703436276,-151.0,0.00019178,2]
[347336188,1735703436285,-500.0,0.00019178,2]
[347336189,1735703436295,-151.0,0.00019178,2]
[347336190,1735703436305,-151.0,0.00019178,2]
[347336191,1735703436315,-151.0,0.00019178,2]
[347336192,1735703436324,-151.0,0.00019178,2]
[347336193,1735703436333,-503.91496929,0.00019178,2]
[347336194,1735703436344,-151.0,0.00019178,2]
[347336195,1735703436353,-500.29108879,0.00019178,2]
[347336196,1735703436362,-194.222496,0.00019178,2]
[347336197,1735703436371,-502.39856109,0.00019178,2]
[347336198,1735703436381,-502.66470104,0.00019178,2]
[347336199,1735703436391,-500.0,0.00019178,2]
[347336200,1735703436400,-503.21414548,0.00019178,2]
[347336201,1735703436410,-500.0,0.00019178,2]
[347336202,1735703436419,-502.36968709,0.00019178,2]
[347336203,1735703436429,-503.02719017,0.00019178,2]
[347336204,1735703436439,-504.59511614,0.00019178,2]
[347336205,1735703436448,-501.12842338,0.00019178,2]
[347336206,1735703436458,-503.87308123,0.00019178,2]
[347336207,1735703436467,-1239.364065,0.00019178,2]
[347336208,1735703436477,-1239.364065,0.00019178,2]
[347336209,1735703436487,-502.52018035,0.00019178,2]
[347336210,1735703436497,-1239.364065,0.00019178,2]
[347336211,1735703436507,-1239.364065,0.00019178,2]
[347336212,1735703436516,-1239.364065,0.00019178,2]
[347336213,1735703436526,-500.0,0.00019178,2]
[347336214,1735703436536,-500.0,0.00019178,2]
[347336215,1735703436546,-1239.364065,0.00019178,2]
[347336216,1735703436556,-1239.364065,0.00019178,2]
[347336217,1735703436566,-500.0,0.00019178,2]
[347336218,1735703436577,-1239.364065,0.00019178,2]
[347336219,1735703436587,-431.449242,0.00019178,2]
[347336220,1735703436596,-1239.364065,0.00019178,2]
[347336221,1735703436606,-431.449247,0.00019178,2]
[347336222,1735703436616,-1239.364065,0.00019178,2]
[347336223,1735703436625,-503.0584219,0.00019178,2]
[347336224,1735703436636,-1239.364065,0.00019178,2]
[347336225,1735703436645,-506.25599772,0.00019178,2]
[347336226,1735703436655,-1239.364065,0.00019178,2]
[347336227,1735703436666,-1239.364065,0.00019178,2]
[347336228,1735703436676,-1239.364065,0.00019178,2]
[347336229,1735703436685,-501.5174232,0.00019178,2]
[347336230,1735703436695,-503.89680848,0.00019178,2]
[347336231,1735703436705,-502.38657266,0.00019178,2]
[347336232,1735703436715,-501.01079097,0.00019178,2]
[347336233,1735703436724,-500.0,0.00019178,2]
[347336234,1735703436734,-503.0409126,0.00019178,2]
[347336235,1735703436744,-500.0,0.00019178,2]
[347336236,1735703436754,-504.19325583,0.00019178,2]
[347336237,1735703436764,-500.0,0.00019178,2]
[347336238,1735703436774,-278.27457481,0.00019178,2]
[347336239,1735703436784,-605.97824998,0.00019178,2]
[347336240,1735703436793,-500.59135964,0.00019178,2]
[347336241,1735703436802,-503.43661678,0.00019178,2]
[347336242,1735703436812,-500.0,0.00019178,2]
[347336243,1735703436822,-500.64780007,0.00019178,2]
[347336244,1735703436831,-504.01302979,0.00019178,2]
[347336245,1735703436841,-151.0,0.00019178,2]
[347336246,1735703436852,-151.0,0.00019178,2]
[347336247,1735703436862,-151.0,0.00019178,2]
[347336248,1735703436871,-151.0,0.00019178,2]
[347336249,1735703436881,-151.0,0.00019178,2]
[347336250,1735703436890,-182.545176,0.00019178,2]
[347336251,1735703436900,-151.0,0.00019178,2]
[347336252,1735703436910,-500.0,0.00019178,2]
[347336253,1735703436919,-503.44058238,0.00019178,2]
[347336254,1735703436932,-500.0,0.00019178,2]
[347336255,1735703436942,-500.0,0.00019178,2]
[347336256,1735703436953,-501.5478385,0.00019178,2]
[347336257,1735703436962,-151.0,0.00019178,2]
[347336258,1735703436972,-500.0,0.00019178,2]
[347336259,1735703436981,-151.0,0.00019178,2]
[347336260,1735703436990,-500.5803012,0.00019178,2]
[347336261,1735703437000,-507.79492114,0.00019178,2]
[347336262,1735703437011,-151.0,0.00019178,2]
[347336263,1735703437020,-151.0,0.00019178,2]
[347336264,1735703437030,-151.0,0.00019178,2]
[347336265,1735703437041,-500.95855277,0.00019178,2]
[347336266,1735703437051,-500.0,0.00019178,2]
[347336267,1735703437062,-501.15131063,0.00019178,2]
[347336268,1735703437071,-502.30495448,0.00019178,2]
[347336269,1735703437081,-770.04,0.00019178,2]
[347336270,1735703437092,-505.48337459,0.00019178,2]
[347336271,1735703437102,-500.0,0.00019178,2]
[347336272,1735703437112,-152.334057,0.00019178,2]
[347336273,1735703437121,-500.0,0.00019178,2]
[347336274,1735703437131,-286.944355,0.00019178,2]
[347336275,1735703437140,-503.10275094,0.00019178,2]
[347336276,1735703437150,-500.79764464,0.00019178,2]
[347336277,1735703437160,-500.0,0.00019178,2]
[347336278,1735703437169,-500.74017252,0.00019178,2]
[347336279,1735703437179,-507.44361118,0.00019178,2]
[347336280,1735703437189,-582.92,0.00019178,2]
[347336281,1735703437201,-504.17019326,0.00019178,2]
[347336282,1735703437213,-500.0,0.00019178,2]
[347336283,1735703437223,-506.59462191,0.00019178,2]
[347336284,1735703437234,-501.3686983,0.00019178,2]
[347336285,1735703437244,-230.10487236,0.00019178,2]
[347336286,1735703437254,-501.05291563,0.00019178,2]
[347336287,1735703437264,-1000.0,0.00019178,2]
[347336288,1735703437274,-151.183472,0.00019178,2]
[347336289,1735703437284,-502.72501494,0.00019178,2]
[347336290,1735703437293,-504.24493023,0.00019178,2]
[347336291,1735703437303,-500.0,0.00019178,2]
[347336292,1735703437313,-500.0,0.00019178,2]
[347336293,1735703437323,-501.1672604,0.00019178,2]
[347336294,1735703437333,-505.96656743,0.00019178,2]
[347336295,1735703437343,-500.55478084,0.00019178,2]
[347336296,1735703437352,-504.09072016,0.00019178,2]
[347336297,1735703437363,-503.27687184,0.00019178,2]
[347336298,1735703437373,-501.5092757,0.00019178,2]
[347336299,1735703437383,-500.0,0.00019178,2]
[347336300,1735703437393,-586.95,0.00019178,2]
[347336301,1735703437403,-500.0,0.00019178,2]
[347336302,1735703437414,-502.31985349,0.00019178,2]
[347336303,1735703437423,-501.95935285,0.00019178,2]
[347336304,1735703437433,-267.432983,0.00019178,2]
[347336305,1735703437443,-267.432983,0.00019178,2]
[347336306,1735703437453,-267.432983,0.00019178,2]
[347336307,1735703437462,-267.432983,0.00019178,2]
[347336308,1735703437472,-267.432983,0.00019178,2]
[347336309,1735703437482,-267.432983,0.00019178,2]
[347336310,1735703437492,-267.432983,0.00019178,2]
[347336311,1735703437502,-854.17,0.00019178,2]
[347336312,1735703437512,-267.432983,0.00019178,2]
[347336313,1735703437522,-267.432983,0.00019178,2]
[347336314,1735703437531,-500.0,0.00019178,2]
[347336315,1735703437540,-267.432983,0.00019178,2]
[347336316,1735703437550,-267.432983,0.00019178,2]
[347336317,1735703437561,-267.432983,0.00019178,2]
[347336318,1735703437570,-267.432983,0.00019178,2]
[347336319,1735703437581,-267.432983,0.00019178,2]
[347336320,1735703437590,-500.0,0.00019178,2]
[347336321,1735703437600,-267.432983,0.00019178,2]
[347336322,1735703437610,-267.432983,0.00019178,2]
[347336323,1735703437620,-151.0,0.00019178,2]
[347336324,1735703437630,-151.0,0.00019178,2]
[347336325,1735703437640,-501.08252883,0.00019178,2]
[347336326,1735703437649,-500.0,0.00019178,2]
[347336327,1735703437659,-151.0,0.00019178,2]
[347336328,1735703437669,-500.57523473,0.00019178,2]
[347336329,1735703437678,-151.0,0.00019178,2]
[347336330,1735703437687,-151.0,0.00019178,2]
[347336331,1735703437698,-533.07,0.00019178,2]
[347336332,1735703437707,-151.0,0.00019178,2]
[347336333,1735703437716,-151.0,0.00019178,2]
[347336335,1735703437726,-151.0,0.00019178,2]
[347336337,1735703437736,-502.73133192,0.00019178,2]
[347336338,1735703437745,-500.66677963,0.00019178,2]
[347336340,1735703437756,-500.0,0.00019178,2]
[347336341,1735703437766,-500.0,0.00019178,2]
[347336342,1735703437776,-502.20902357,0.00019178,2]
[347336343,1735703437787,-500.0,0.00019178,2]
[347336344,1735703437796,-518.60632927,0.00019178,2]
[347336345,1735703437806,-501.04812654,0.00019178,2]
[347336346,1735703437815,-500.37682959,0.00019178,2]
[347336348,1735703437825,-585.29590456,0.00019178,2]
[347336349,1735703437835,-500.0,0.00019178,2]
[347336362,1735703437958,-151.0,0.00019178,2]
[347336364,1735703437968,-151.0,0.00019178,2]
[347336366,1735703437979,-151.0,0.00019178,2]
[347336368,1735703437990,-500.0,0.00019178,2]
[347336370,1735703437999,-506.37699083,0.00019178,2]
[347336372,1735703438009,-503.33272125,0.00019178,2]
[347336374,1735703438018,-500.0,0.00019178,2]
[347336376,1735703438027,-151.0,0.00019178,2]
[347336377,1735703438037,-151.0,0.00019178,2]
[347336379,1735703438046,-153.073149,0.00019178,2]
[347336381,1735703438056,-500.0,0.00019178,2]
[347336383,1735703438065,-502.06099173,0.00019178,2]
[347336385,1735703438074,-504.68024576,0.00019178,2]
[347336387,1735703438084,-500.0,0.00019178,2]
[347336388,1735703438094,-500.0,0.00019178,2]
[347336389,1735703438105,-500.0,0.00019178,2]
[347336390,1735703438115,-501.3610078,0.00019178,2]
[347336391,1735703438124,-500.0,0.00019178,2]
[347336393,1735703438133,-501.18611852,0.00019178,2]
[347336395,1735703438143,-500.0,0.00019178,2]
[347336397,1735703438152,-500.0,0.00019178,2]
[347336398,1735703438163,-500.0,0.00019178,2]
[347336400,1735703438173,-500.0,0.00019178,2]
[347336402,1735703438182,-500.0,0.00019178,2]
[347336404,1735703438192,-500.0,0.00019178,2]